fUST/lending_fUST_20251030
["ID","MTS","AMOUNT","RATE_DAILY","PERIOD"]
[392691544,1761817833854,-410.567281,0.00028821,31]
[392691545,1761817833863,-410.567281,0.00028821,31]
[392691546,1761817833874,-410.567281,0.00028821,31]
[392691547,1761817833884,-159.78138,0.00028821,31]
[392691548,1761817833894,-159.78138,0.00028821,31]
[392691549,1761817833904,-159.78138,0.00028821,31]
[392691550,1761817833916,-159.78138,0.00028821,31]
[392691551,1761817833930,-151.0,0.00028821,7]
[392691552,1761817833939,-151.0,0.00028821,7]
[392691553,1761817833950,-160.224233,0.00028821,31]
[392691554,1761817833959,-260.0,0.00028958,2]
[392691555,1761817833972,-1000.0,0.00029021,5]
[392691556,1761817833983,-626.96846464,0.00029021,5]
[392691557,1761817833997,-1000.0,0.00029021,5]
[392691558,1761817834007,-1000.0,0.00029021,5]
[392691559,1761817834016,-1000.0,0.00029021,5]
[392691560,1761817834026,-250.0,0.00029021,5]
[392691561,1761817834036,-330.356,0.00029077,21]
[392691562,1761817834046,-182.314,0.00029077,21]
[392691563,1761817834055,-500.98228793,0.00029221,5]
[392691564,1761817834065,-501.23801103,0.00029221,4]
[392691565,1761817834078,-420.0,0.00029251,2]
[392691566,1761817834087,-500.59109711,0.00029264,5]
[392691567,1761817834096,-505.86879087,0.00029264,5]
[392691568,1761817834106,-500.0,0.00029264,5]
[392691569,1761817834118,-350.0,0.00029268,5]
[392691570,1761817834128,-1500.0,0.00029268,5]
[392691571,1761817834138,-1500.0,0.00029368,5]
[392691572,1761817834148,-1680.0,0.0002938,2]
[392691573,1761817834158,-360.0,0.00029506,2]
[392691574,1761817834169,-1500.0,0.00029568,5]
[392691575,1761817834180,-1381.40049954,0.00029568,5]
[392691576,1761817834189,-150.6995191,0.00029568,5]
[392691577,1761817834198,-426.45718703,0.00029658,2]
[392691578,1761817834208,-714.94,0.0002976,3]
[392691579,1761817834217,-357.46,0.0002976,3]
[392691580,1761817834226,-450.0,0.00029816,5]
[392691581,1761817834235,-500.0,0.00029816,5]
[392691582,1761817834245,-561.7735947,0.00029875,2]
[392691583,1761817834255,-2000.0,0.00029916,5]
[392691584,1761817834264,-409.9590018,0.00029932,2]
[392691585,1761817834274,-275.45969136,0.0002999,2]
[392691586,1761817834284,-188.0,0.0003,7]
[392691587,1761817834294,-50651.76796038,0.0003,20]
[392691588,1761817834303,-154.185609,0.0003,31]
[392691589,1761817834312,-151.0,0.0003,7]
[392691590,1761817834321,-151.0,0.0003,7]
[392691591,1761817834331,-151.0,0.0003,7]
[392691592,1761817834341,-253.491971,0.0003,31]
[392691593,1761817834351,-151.0,0.0003,15]
[392691594,1761817834360,-273.868427,0.0003,15]
[392691595,1761817834369,-151.0,0.0003,31]
[392691596,1761817834378,-151.0,0.0003,31]
[392691597,1761817834387,-241.859858,0.0003,31]
[392691598,1761817834492,-151.0,0.0003,31]
[392691599,1761817834505,-151.0,0.0003,31]
[392691600,1761817834515,-208.191432,0.0003,31]
[392691601,1761817834525,-208.191432,0.0003,31]
[392691602,1761817834534,-177.893815,0.0003,31]
[392691603,1761817834543,-208.191432,0.0003,31]
[392691604,1761817834553,-208.191432,0.0003,31]
[392691605,1761817834563,-151.0,0.0003,31]
[392691606,1761817834572,-151.0,0.0003,31]
[392691607,1761817834583,-151.0,0.0003,31]
[392691608,1761817834593,-151.0,0.0003,31]
[392691609,1761817834603,-151.0,0.0003,31]
[392691610,1761817834613,-151.0,0.0003,2]
[392691611,1761817834623,-151.0,0.0003,2]
[392691612,1761817834632,-151.0,0.0003,2]
[392691613,1761817834642,-486.743205,0.0003,31]
[392691614,1761817834652,-151.0,0.0003,31]
[392691615,1761817834662,-486.743205,0.0003,31]
[392691616,1761817834672,-486.743205,0.0003,31]
[392691617,1761817834683,-486.743205,0.0003,31]
[392691618,1761817834693,-153.371539,0.0003,31]
[392691619,1761817834702,-410.567281,0.0003,31]
[392691620,1761817834713,-410.567281,0.0003,31]
[392691621,1761817834722,-410.567281,0.0003,31]
[392691622,1761817834732,-410.567281,0.0003,31]
[392691623,1761817834743,-159.78138,0.0003,31]
[392691624,1761817834753,-159.78138,0.0003,31]
[392691625,1761817834763,-159.78138,0.0003,31]
[392691626,1761817834772,-159.78138,0.0003,31]
[392691627,1761817834782,-151.0,0.0003,7]
[392691628,1761817834792,-222.253948,0.0003,7]
[392691629,1761817834802,-300.0,0.00030054,2]
[392691630,1761817834811,-402.22004705,0.00030065,2]
[392691631,1761817834822,-2000.0,0.00030116,5]
[392691632,1761817834831,-550.0,0.00030364,5]
[392691633,1761817834841,-2500.0,0.00030464,5]
[392691634,1761817834850,-720.0,0.00030608,30]
[392691635,1761817834859,-1000.0,0.00030664,5]
[392691636,1761817834868,-775.8091886,0.0003079,2]
[392691637,1761817834876,-1531.02,0.000308,2]
[392691638,1761817834886,-1933.0,0.00030904,2]
[392691639,1761817834896,-650.0,0.00030912,5]
[392691640,1761817834906,-13039.23246144,0.0003101,5]
[392691641,1761817834917,-3000.0,0.00031012,5]
[392691642,1761817834926,-194.0,0.00031142,2]
[392691643,1761817834935,-194.0,0.00031163,7]
[392691644,1761817834944,-1933.0,0.0003127,7]
[392691645,1761817834953,-155.9264538,0.00031275,2]
[392691646,1761817834963,-750.0,0.0003146,5]
[392691647,1761817834973,-3500.0,0.0003156,5]
[392691648,1761817834982,-194.0,0.00031587,7]
[392691649,1761817834995,-173.1064285,0.00031618,2]
[392691650,1761817835004,-587.0,0.00031622,2]
[392691651,1761817835015,-482.90005002,0.00031658,2]
[392691652,1761817835024,-194.0,0.00031795,2]
[392691653,1761817835033,-249.86857928,0.0003183,2]
[392691674,1761817838189,-500.0,0.00027073,2]
[392691676,1761817838200,-1000.0,0.00027621,5]
[392691678,1761817838209,-151.0,0.00028151,2]
[392691679,1761817838219,-151.0,0.00028151,2]
[392691680,1761817838228,-151.0,0.00028151,2]
[392691681,1761817838238,-151.0,0.00028151,2]
[392691682,1761817838247,-151.0,0.00028151,2]
[392691683,1761817838257,-151.0,0.00028151,2]
[392691684,1761817838266,-1500.0,0.00028168,5]
[392691685,1761817838276,-485.63,0.0002839,10]
[392691686,1761817838285,-2000.0,0.00028716,5]
[392691687,1761817838294,-500.0,0.00029264,5]
[392691688,1761817838304,-152.35146777,0.0003183,2]
[392691689,1761817838313,-1357.0,0.00031901,3]
[392691690,1761817838323,-850.0,0.00032008,5]
[392691691,1761817838332,-194.0,0.00032045,2]
[392691692,1761817838343,-2753.09805234,0.00032108,5]
[392691693,1761817838352,-192.0,0.0003215,7]
[392691694,1761817838361,-192.0,0.0003219,2]
[392691695,1761817838370,-369.9,0.00032195,15]
[392691696,1761817838380,-192.0,0.00032282,2]
[392691697,1761817838390,-369.9,0.00032295,15]
[392691698,1761817838399,-194.0,0.00032335,2]
[392691699,1761817838408,-369.9,0.00032395,15]
[392691700,1761817838417,-369.9,0.00032495,15]
[392691701,1761817838426,-192.0,0.00032516,2]
[392691702,1761817838435,-192.0,0.00032525,2]
[392691703,1761817838445,-678.30100925,0.00032556,5]
[392691704,1761817838454,-369.9,0.00032595,15]
[392691705,1761817838463,-192.0,0.00032603,7]
[392691706,1761817838472,-3802.8097362,0.00032669,2]
[392691707,1761817838481,-561.7735947,0.00032675,2]
[392691708,1761817838491,-369.9,0.00032695,15]
[392691709,1761817838501,-192.0,0.00032769,7]
[392691710,1761817838510,-409.9590018,0.00032772,2]
[392691711,1761817838519,-369.9,0.00032795,15]
[392691712,1761817838528,-1531.02,0.000328,2]
[392691713,1761817838538,-192.0,0.00032824,2]
[392691714,1761817838547,-192.0,0.00032865,2]
[392691715,1761817838556,-1999.0,0.00032876,120]
[392691716,1761817838565,-486.743205,0.00032876,31]
[392691717,1761817838574,-219.121692,0.00032876,31]
[392691718,1761817838583,-486.743205,0.00032876,31]
[392691719,1761817838592,-486.743205,0.00032876,31]
[392691720,1761817838601,-486.743205,0.00032876,31]
[392691721,1761817838610,-410.567281,0.00032876,31]
[392691722,1761817838619,-410.567281,0.00032876,31]
[392691723,1761817838628,-410.567281,0.00032876,31]
[392691724,1761817838637,-410.567281,0.00032876,31]
[392691725,1761817838646,-159.78138,0.00032876,31]
[392691726,1761817838655,-159.78138,0.00032876,31]
[392691727,1761817838663,-159.78138,0.00032876,31]
[392691728,1761817838672,-159.78138,0.00032876,31]
[392691729,1761817838681,-151.0,0.00032876,7]
[392691730,1761817838689,-170.308348,0.00032877,14]
[392691731,1761817838699,-3176.0,0.00032886,2]
[392691732,1761817838707,-2167.0,0.00032886,2]
[392691733,1761817838716,-984.0,0.00032886,2]
[392691734,1761817838725,-369.9,0.00032895,60]
[392691735,1761817838734,-192.0,0.00032921,7]
[392691736,1761817838744,-192.0,0.00032942,7]
[392691737,1761817838753,-192.0,0.00032961,7]
[392691738,1761817838762,-369.9,0.00032995,60]
[392691739,1761817838771,-151.0,0.00033056,15]
[392691740,1761817838780,-192.0,0.00033063,2]
[392691741,1761817838789,-369.9,0.00033095,60]
[392691742,1761817838797,-151.0,0.00033103,31]
[392691743,1761817838806,-151.0,0.00033103,31]
[392691744,1761817838815,-151.0,0.00033103,31]
[392691745,1761817838824,-168.0,0.00033103,2]
[392691746,1761817838833,-418.321337,0.00033165,2]
[392691747,1761817838843,-192.0,0.00033179,2]
[392691748,1761817838852,-369.9,0.00033195,60]
[392691749,1761817838860,-151.0,0.00033195,31]
[392691750,1761817838869,-157.20308,0.00033195,31]
[392691751,1761817838879,-151.0,0.00033195,2]
[392691752,1761817838888,-151.0,0.00033195,2]
[392691753,1761817838897,-151.0,0.00033195,2]
[392691754,1761817838906,-226.38939626,0.00033295,60]
[392691850,1761817843202,-155.370113,0.00028821,31]
[392691851,1761817843211,-143.51060374,0.00033295,60]
[392691852,1761817843220,-7732.45929748,0.00033373,10]
[392691853,1761817843229,-151.0,0.00033373,7]
[392691854,1761817843239,-151.0,0.00033373,7]
[392691855,1761817843248,-214.586796,0.00033373,7]
[392691856,1761817843257,-151.0,0.00033373,31]
[392691857,1761817843266,-208.191432,0.00033373,31]
[392691858,1761817843275,-208.191432,0.00033373,31]
[392691859,1761817843284,-208.191432,0.00033373,31]
[392691860,1761817843294,-208.191432,0.00033373,31]
[392691861,1761817843303,-151.0,0.00033373,31]
[392691862,1761817843312,-151.0,0.00033373,31]
[392691863,1761817843321,-203.782382,0.00033373,31]
[392691864,1761817843331,-192.0,0.0003339,2]
[392691865,1761817843340,-369.9,0.00033395,60]
[392691866,1761817843350,-192.0,0.00033397,2]
[392691867,1761817843359,-369.9,0.00033495,60]
[392691868,1761817843368,-151.0,0.000335,14]
[392691869,1761817843377,-369.9,0.00033595,60]
[392691870,1761817843386,-158.20574,0.00033595,2]
[392691871,1761817843395,-402.22004705,0.00033595,2]
[392691872,1761817843404,-539.34291301,0.00033658,120]
[392691873,1761817843414,-864.0,0.00033668,30]
[392691874,1761817843423,-369.9,0.00033695,60]
[392691875,1761817843432,-1653.0623782,0.00033698,120]
[392691876,1761817843444,-264.84436444,0.00033698,120]
[392691890,1761817846177,-81.09325736,0.00033698,120]
[392691891,1761817846189,-2681.04,0.000337,14]
[392691892,1761817846198,-369.9,0.00033795,60]
[392691893,1761817846207,-369.9,0.00033895,60]
[392691894,1761817846216,-2369.82812465,0.00033899,2]
[392691899,1761817993171,150.0,0.000248,2]
[392691900,1761818195782,753.46,0.00025204,5]
[392691934,1761818773886,-450.89111063,0.00025226,2]
[392691935,1761818775922,-199.68079118,0.00025226,2]
[392691936,1761818778417,-249.44027043,0.00025226,2]
[392691937,1761818848108,-150.52850186,0.00025226,2]
[392691938,1761818941666,1000.0,0.0003547,60]
[392691939,1761818967826,1000.0,0.0003547,60]
[392691940,1761818971880,1000.0,0.0003547,60]
[392691941,1761818973126,1000.0,0.0003547,60]
[392691942,1761818974064,1000.0,0.0003547,60]
[392691943,1761818981583,1166.23,0.0003547,60]
[392691971,1761819032375,-1467.1761281,0.00025226,2]
[392691972,1761819032428,-418.41718489,0.00025226,2]
[392691973,1761819032438,-500.0,0.000253,2]
[392691974,1761819032447,-295.92368441,0.00025326,2]
[392691975,1761819032458,-205.8312446,0.00025447,2]
[392691976,1761819032467,-205.92173437,0.00026334,2]
[392691977,1761819032476,-500.0,0.00026373,2]
[392691978,1761819032485,-160.0,0.00026393,2]
[392691979,1761819032495,-199.68079118,0.00026396,2]
[392691980,1761819032504,-1200.0,0.00026397,2]
[392691981,1761819032517,-129.51207541,0.00026398,2]
[392691982,1761819032534,-170.48792459,0.00026398,2]
[392691983,1761819032544,-300.0,0.00026398,2]
[392691984,1761819032553,-103.49071336,0.00026398,2]
[392692035,1761819038359,-205.8312446,0.00025226,2]
[392692037,1761819038369,-196.50928664,0.00026398,2]
[392692039,1761819038378,-185.28259923,0.00026399,2]
[392692066,1761819040610,-25284.78921873,0.00026399,2]
[392692067,1761819040620,-1200.0,0.00026399,2]
[392692068,1761819040629,-241.74575897,0.000264,2]
[392692069,1761819040639,-169.62692057,0.000264,2]
[392692070,1761819040648,-312.59091753,0.000264,2]
[392692071,1761819040658,-319.17089944,0.000264,2]
[392692072,1761819040668,-195.79953698,0.000264,2]
[392692073,1761819040678,-242.14293686,0.000264,2]
[392692075,1761819040688,-230.37886674,0.000264,2]
[392692077,1761819040697,-176.67002494,0.000264,2]
[392692078,1761819040707,-220.72967174,0.000264,2]
[392692079,1761819040716,-208.06036042,0.000264,2]
[392692080,1761819040725,-160.0,0.00026434,2]
[392692081,1761819040733,-312.59091753,0.000267,2]
[392692082,1761819040742,-230.37886674,0.000267,2]
[392692083,1761819040751,-242.14293686,0.000267,2]
[392692084,1761819040760,-208.06036042,0.000267,2]
[392692085,1761819040769,-1000.0,0.00026921,2]
[392692086,1761819040778,-300.0,0.00026927,30]
[392692087,1761819040787,-300.0,0.00026927,30]
[392692088,1761819040796,-300.0,0.00026927,30]
[392692089,1761819040804,-300.0,0.00026927,30]
[392692090,1761819040813,-300.0,0.00026927,30]
[392692091,1761819040823,-300.0,0.00026927,30]
[392692092,1761819040835,-300.0,0.00026927,30]
[392692093,1761819040843,-300.0,0.00026927,30]
[392692094,1761819040853,-300.0,0.00026927,30]
[392692095,1761819040863,-300.0,0.00026927,30]
[392692096,1761819040872,-300.0,0.00026927,30]
[392692097,1761819040881,-300.0,0.00026927,30]
[392692098,1761819040891,-300.0,0.00026927,30]
[392692099,1761819040900,-300.0,0.00026927,30]
[392692100,1761819040909,-300.0,0.00026927,30]
[392692101,1761819040918,-511.0116473,0.00026984,2]
[392692102,1761819040927,-312.59091753,0.00027,2]
[392692103,1761819040936,-242.14293686,0.00027,2]
[392692104,1761819040945,-334.52806484,0.00027173,2]
[392692105,1761819040954,-500.0,0.00027199,2]
[392692106,1761819040963,-500.0,0.00027199,2]
[392692107,1761819040972,-500.0,0.00027199,2]
[392692108,1761819040980,-500.0,0.00027199,2]
[392692109,1761819040990,-403.53734148,0.00027199,2]
[392692110,1761819040999,-500.0,0.00027199,2]
[392692111,1761819041009,-500.0,0.00027199,2]
[392692112,1761819041018,-500.0,0.00027199,2]
[392692113,1761819041027,-593.20553028,0.00027199,2]
[392692114,1761819041036,-500.0,0.00027199,2]
[392692115,1761819041045,-500.0,0.00027199,2]
[392692116,1761819041054,-500.0,0.00027199,2]
[392692117,1761819041063,-500.0,0.00027199,2]
[392692118,1761819041071,-500.0,0.00027199,2]
[392692119,1761819041081,-500.0,0.00027199,2]
[392692120,1761819041090,-217.95475558,0.00027199,2]
[392692121,1761819041099,-500.0,0.00027199,2]
[392692122,1761819041109,-500.0,0.00027199,2]
[392692123,1761819041119,-500.0,0.00027199,2]
[392692124,1761819041130,-500.0,0.00027199,2]
[392692125,1761819041139,-500.0,0.00027199,2]
[392692126,1761819041148,-500.0,0.00027199,2]
[392692127,1761819041157,-500.0,0.00027199,2]
[392692128,1761819041166,-500.0,0.00027199,2]
[392692129,1761819041175,-500.0,0.00027199,2]
[392692130,1761819041184,-500.0,0.00027199,2]
[392692131,1761819041195,-500.0,0.00027199,2]
[392692132,1761819041203,-500.0,0.00027199,2]
[392692133,1761819041214,-500.0,0.00027199,2]
[392692134,1761819041223,-500.0,0.00027199,2]
[392692135,1761819041231,-500.0,0.00027199,2]
[392692136,1761819041240,-500.0,0.00027199,2]
[392692137,1761819041250,-500.0,0.00027199,2]
[392692138,1761819041260,-217.38313176,0.00027199,2]
[392692139,1761819041270,-500.0,0.00027199,2]
[392692140,1761819041280,-500.0,0.00027199,2]
[392692141,1761819041290,-410.38779156,0.00027199,2]
[392692142,1761819041299,-500.0,0.00027199,2]
[392692143,1761819041310,-500.0,0.00027199,2]
[392692144,1761819041321,-500.0,0.00027199,2]
[392692145,1761819041331,-500.0,0.00027199,2]
[392692146,1761819041341,-500.0,0.00027199,2]
[392692147,1761819041350,-500.0,0.00027199,2]
[392692148,1761819041359,-500.0,0.00027199,2]
[392692149,1761819041369,-500.0,0.00027199,2]
[392692150,1761819041378,-500.0,0.00027199,2]
[392692151,1761819041388,-643.03379964,0.00027199,2]
[392692152,1761819041397,-500.0,0.00027199,2]
[392692153,1761819041406,-500.0,0.00027199,2]
[392692154,1761819041415,-500.0,0.00027199,2]
[392692155,1761819041424,-500.0,0.00027199,2]
[392692156,1761819041433,-500.0,0.00027199,2]
[392692157,1761819041443,-500.0,0.00027199,2]
[392692158,1761819041452,-500.0,0.00027199,2]
[392692159,1761819041462,-500.0,0.00027199,2]
[392692160,1761819041471,-500.0,0.00027199,2]
[392692161,1761819041480,-500.0,0.00027199,2]
[392692162,1761819041489,-500.0,0.00027199,2]
[392692163,1761819041498,-500.0,0.00027199,2]
[392692164,1761819041507,-500.0,0.00027199,2]
[392692165,1761819041518,-500.0,0.00027199,2]
[392692166,1761819041529,-500.0,0.00027199,2]
[392692167,1761819041538,-500.0,0.00027199,2]
[392692168,1761819041548,-500.0,0.00027199,2]
[392692169,1761819041557,-500.0,0.00027199,2]
[392692170,1761819041567,-500.0,0.00027199,2]
[392692171,1761819041575,-500.0,0.00027199,2]
[392692172,1761819041585,-500.0,0.00027199,2]
[392692173,1761819041594,-500.0,0.00027199,2]
[392692174,1761819041603,-500.0,0.00027199,2]
[392692175,1761819041612,-500.0,0.00027199,2]
[392692176,1761819041621,-500.0,0.00027199,2]
[392692177,1761819041631,-500.0,0.00027199,2]
[392692178,1761819041640,-500.0,0.00027199,2]
[392692179,1761819041650,-500.0,0.00027199,2]
[392692180,1761819041659,-500.0,0.00027199,2]
[392692181,1761819041669,-500.0,0.00027199,2]
[392692182,1761819041678,-273.81062211,0.00027199,2]
[392692183,1761819041687,-500.0,0.00027199,2]
[392692184,1761819041697,-500.0,0.00027199,2]
[392692185,1761819041706,-500.0,0.00027199,2]
[392692186,1761819041715,-500.0,0.00027199,2]
[392692187,1761819041724,-500.0,0.00027199,2]
[392692188,1761819041733,-500.0,0.00027199,2]
[392692189,1761819041742,-500.0,0.00027199,2]
[392692190,1761819041751,-508.04023931,0.00027199,2]
[392692191,1761819041760,-500.0,0.00027199,2]
[392692192,1761819041769,-500.0,0.00027199,2]
[392692193,1761819041779,-500.0,0.00027199,2]
[392692194,1761819041788,-500.0,0.00027199,2]
[392692195,1761819041797,-500.0,0.00027199,2]
[392692196,1761819041806,-500.0,0.00027199,2]
[392692197,1761819041815,-500.0,0.00027199,2]
[392692198,1761819041824,-500.0,0.00027199,2]
[392692199,1761819041834,-500.0,0.00027199,2]
[392692200,1761819041843,-500.0,0.00027199,2]
[392692201,1761819041853,-500.0,0.00027199,2]
[392692202,1761819041862,-500.0,0.00027199,2]
[392692203,1761819041871,-500.0,0.00027199,2]
[392692204,1761819041881,-500.0,0.00027199,2]
[392692205,1761819041891,-500.0,0.00027199,2]
[392692206,1761819041899,-500.0,0.00027199,2]
[392692207,1761819041910,-312.59091753,0.000272,2]
[392692208,1761819041919,-242.14293686,0.000272,2]
[392692209,1761819041928,-225.6286586,0.000272,2]
[392692210,1761819041938,-349.18994761,0.00027326,2]
[392692211,1761819041947,-400.15290171,0.0002739,7]
[392692212,1761819041957,-600.0,0.00027465,30]
[392692213,1761819041966,-500.0,0.00027473,5]
[392692214,1761819041975,-500.64243665,0.00027473,5]
[392692215,1761819041984,-500.0,0.00027473,5]
[392692216,1761819041993,-500.0,0.00027473,5]
[392692217,1761819042003,-500.0,0.00027473,5]
[392692218,1761819042011,-478.21,0.00027489,10]
[392692219,1761819042020,-398.51,0.00027489,10]
[392692220,1761819042029,-470.8585227,0.00027498,2]
[392692221,1761819042038,-500.0,0.00027498,2]
[392692222,1761819042047,-500.0,0.00027498,2]
[392692223,1761819042055,-500.0,0.00027498,2]
[392692224,1761819042065,-542.76014597,0.00027498,2]
[392692225,1761819042074,-312.59091753,0.000275,2]
[392692226,1761819042084,-242.14293686,0.000275,2]
[392692227,1761819042093,-5612.17314036,0.00027961,2]
[392692228,1761819042102,-14394.85389275,0.00027971,2]
[392692229,1761819042119,-5519.4878524,0.00027971,2]
[392692265,1761819046397,-294.99401613,0.0002589,2]
[392692267,1761819046406,-348.09293904,0.0002789,2]
[392692269,1761819046416,-332.09,0.00027961,10]
[392692270,1761819046426,-157186.11926185,0.00027971,2]
[392692271,1761819046436,-3741.44876024,0.00027979,2]
[392692272,1761819046445,-613.28228579,0.00028021,5]
[392692273,1761819046454,-1000.0,0.00028021,5]
[392692274,1761819046464,-654.75692793,0.00028021,5]
[392692275,1761819046474,-1000.82727867,0.00028021,5]
[392692276,1761819046484,-5327.7340688,0.0002819,2]
[392692277,1761819046494,-170.034402,0.00028219,2]
[392692278,1761819046503,-403.80339554,0.00028276,2]
[392692279,1761819046514,-151.0,0.00028281,2]
[392692280,1761819046527,-151.0,0.00028281,2]
[392692281,1761819046536,-151.0,0.00028281,2]
[392692282,1761819046545,-151.0,0.00028281,2]
[392692283,1761819046555,-151.0,0.00028281,2]
[392692284,1761819046566,-151.0,0.00028281,2]
[392692285,1761819046575,-151.0,0.00028281,2]
[392692286,1761819046584,-151.0,0.00028281,2]
[392692287,1761819046594,-151.0,0.00028281,2]
[392692288,1761819046604,-151.0,0.00028281,2]
[392692289,1761819046613,-151.0,0.00028281,2]
[392692290,1761819046622,-151.0,0.00028281,2]
[392692291,1761819046631,-151.0,0.00028281,2]
[392692292,1761819046639,-151.0,0.00028281,2]
[392692293,1761819046648,-151.0,0.00028281,2]
[392692294,1761819046658,-151.0,0.00028281,2]
[392692295,1761819046667,-151.0,0.00028281,2]
[392692296,1761819046676,-151.0,0.00028281,2]
[392692297,1761819046686,-151.0,0.00028281,2]
[392692298,1761819046695,-151.0,0.00028281,2]
[392692299,1761819046705,-195.7,0.0002829,3]
[392692300,1761819046714,-587.11,0.0002829,3]
[392692301,1761819046724,-636.52,0.0002829,3]
[392692302,1761819046733,-26190.1413217,0.0002829,2]
[392692303,1761819046743,-336.80557257,0.0002829,2]
[392692304,1761819046752,-264.285,0.00028299,19]
[392692305,1761819046761,-182.31439067,0.00028299,19]
[392692306,1761819046770,-500.0,0.00028299,4]
[392692307,1761819046779,-500.0,0.00028299,4]
[392692308,1761819046789,-1000.0,0.00028299,2]
[392692309,1761819046798,-1000.0,0.00028299,2]
[392692310,1761819046807,-1000.0,0.00028299,2]
[392692311,1761819046816,-13533.94037907,0.000283,2]
[392692312,1761819046832,-1401.16573763,0.000283,2]
[392692313,1761819046846,-5395.703654,0.000283,2]
[392692314,1761819146102,150.0,0.00013588,30]
[392692315,1761819146539,150.0,0.00014824,30]
[392692316,1761819203763,300.0,0.000148,2]
[392692317,1761819214897,300.0,0.000148,2]
[392692318,1761819220674,150.0,0.00012715,30]
[392692319,1761819221631,150.0,0.00013871,30]
[392692320,1761819222070,150.0,0.00015027,30]
[392692321,1761819225683,300.0,0.000148,2]
[392692322,1761819236785,300.0,0.000148,2]
[392692323,1761819249608,300.0,0.000148,2]
[392692324,1761819262269,195.98134808,0.000148,2]
[392692325,1761819295468,150.0,0.00014011,30]
[392692326,1761819365025,150.0,0.00014018,30]
[392692327,1761819384117,265.14104272,0.00025105,2]
[392692328,1761819747553,355.112376,0.00013699,2]
[392692329,1761819747759,355.112376,0.00020187,2]
[392692333,1761819768501,-315.01609457,0.00025205,2]
[392692335,1761819937457,516.4,0.00025205,2]
[392692336,1761819945125,-1066.23916827,0.00025205,2]
[392692340,1761820069722,3555.1203822,0.00018,2]
[392692341,1761820069746,10000.01,0.00018,2]
[392692342,1761820069769,6444.8896178,0.00018,2]
[392692348,1761820129119,-196.00401519,0.00025205,2]
[392692349,1761820196424,200.0,0.000245,7]
[392692377,1761820232670,-412.74072197,0.00025205,2]
[392692379,1761820232680,-281.46635103,0.00025205,2]
[392692381,1761820232689,-200.0,0.00025205,2]
[392692383,1761820232699,-175.0,0.00025205,15]
[392692385,1761820232708,-591.0,0.00025607,2]
[392692387,1761820232717,-300.0,0.00025607,2]
[392692389,1761820232726,-300.0,0.00025608,2]
[392692391,1761820232735,-1200.0,0.00025608,2]
[392692393,1761820232745,-12054.7887209,0.00025609,2]
[392692395,1761820232755,-999.0,0.0002596,2]
[392692396,1761820232764,-193.39660719,0.000264,2]
[392692398,1761820232774,-262.68937557,0.000264,2]
[392692400,1761820232784,-208.06036043,0.000264,2]
[392692401,1761820232793,-195.79953697,0.000264,2]
[392692402,1761820232803,-255.33671956,0.000265,2]
[392692404,1761820232813,-1288.53158103,0.000265,2]
[392692405,1761820232823,-368.60618678,0.000265,2]